Cogmind - Beta 14 @@@ ROGUE MODE // 2024.09.28 @ 16:23:52 // Winter2022/Polymind Player: LEWiKK Result: Self-destructed Performance ------------- Evolutions (2) 1000 Regions Visited (6) 1200 Robots Destroyed (0) 0 Value Destroyed (0) 0 Prototype IDs (23) 460 Alien Tech Used (0) 0 Bonus (4659) 4659 TOTAL SCORE: 6839 Bonus ------- Polymind Skill 4035 Pacifist 270 Follower Combat Kills 54 Aligned with FarCom 300 Cogmind --------- Core Integrity 421/550 Matter 0/0 Energy 110/110 System Corruption 0% Temperature Cool (0) Movement Walking (120) Location -8/Storage Parts ------- > --- POWER (1) -------- Light Nuclear Core > --- PROPULSION (2) --- Aluminum Leg Aluminum Leg > --- UTILITY (1) ------ Improved Heat Sink > --- WEAPON (1) ------- Particle Gun > --- INVENTORY (1) ---- (None) Peak State ------------ > --- POWER ------------ Improved Ion Engine > --- PROPULSION ------- Light Treads Light Treads > --- UTILITY ---------- Heat Sink Heat Sink Light Armor Plating > --- WEAPON ----------- Beam Rifle Heavy Assault Rifle > --- INVENTORY -------- (None) [Rating: 11] Favorites ----------- Power Light Ion Engine Engine Light Ion Engine Power Core Light Nuclear Core Propulsion Wheel Treads Light Treads Leg Aluminum Leg Wheel Wheel Utility Small Matter Pod Device Heat Sink Storage Small Matter Pod Processor Terrain Scan Processor Protection Light Armor Plating Weapon Beam Rifle Energy Gun Beam Rifle Ballistic Gun Heavy Assault Rifle Special Weapon Welding Torch Build | -11 -10 -10 -10 -9 -8 -8 ------- Run | Yrd Mat Min Exi Min Mat Sto Slots Evolved . | . . . . . . . Power . | . . . . . . . Propulsion . | . . . . . . . Utility . | . . . . . . . Weapon . | . . . . . . . Parts Attached . | . . . . . . . Power . | . . . . . . . Engine . | . . . . . . . Core . | . . . . . . . Reactor . | . . . . . . . Propulsion . | . . . . . . . Treads . | . . . . . . . Leg . | . . . . . . . Wheel . | . . . . . . . Hover . | . . . . . . . Flight . | . . . . . . . Utility . | . . . . . . . Device . | . . . . . . . Storage . | . . . . . . . Processor . | . . . . . . . Hackware . | . . . . . . . Protection . | . . . . . . . Artifact . | . . . . . . . Weapon . | . . . . . . . Energy Gun . | . . . . . . . Energy Cannon . | . . . . . . . Ballistic Gun . | . . . . . . . Ballistic Cannon . | . . . . . . . Launcher . | . . . . . . . Special Weapon . | . . . . . . . Impact Weapon . | . . . . . . . Slashing Weapon . | . . . . . . . Piercing Weapon . | . . . . . . . Special Melee Weapon . | . . . . . . . Unidentified Prototypes . | . . . . . . . Parts Lost 1 | . . . . . . 1 Power 1 | . . . . . . 1 Propulsion . | . . . . . . . Utility . | . . . . . . . Weapon . | . . . . . . . Highest Loss Streak 1 | . . . . . . 1 To Critical Strikes . | . . . . . . . Average Slot Usage (%) 85 | . 66 80 80 80 82 99 Engine 17 | . 16 20 20 20 20 13 Treads 5 | . . . . . . 18 Wheel 29 | . 33 40 40 40 40 9 Device 7 | . . . . . . 21 Storage 14 | . 16 20 20 20 20 3 Protection 2 | . . . . . . 8 Energy Gun 3 | . . . . . 2 11 Ballistic Gun 2 | . . . . . . 8 Peak Build Rating 11 | . 4 4 4 4 5 11 Average Rating 5 | . 3 4 4 4 4 9 On Entrance 3 | . . 4 4 4 4 5 Naked Turns 36 | . 33 . . . . 3 Heaviest Build 18 | . 4 4 4 4 5 18 Greatest Support 46 | 3 20 20 20 20 20 46 Greatest Overweight (x) . | . . . . . . . Average Overweight (x) . | . . . . . . . Largest Inventory Capacity 6 | . 1 1 1 1 1 6 Average Capacity . | . . 1 1 1 1 1 Most Carried 4 | . . 1 . . . 4 Average Carried . | . . . . . . . Final Capacity 1 | . 1 1 1 1 1 1 Final Carried . | . . . . . . . Class Distribution -------------------- 69% | Worker 22% | Sentry 4% | Builder Dominant Class ---------------- Worker | -10/Materials Worker | -10/Mines Worker | -10/Exiles Worker | -9/Mines Worker | -8/Materials Sentry | -8/Storage Resources | -11 -10 -10 -10 -9 -8 -8 ----------- Run | Yrd Mat Min Exi Min Mat Sto Matter Collected 50 | . . 50 . . . . Remotely . | . . . . . . . Salvage Created . | . . . . . . . Parts . | . . . . . . . Haulers Intercepted . | . . . . . . . Recyclers Shooed . | . . . . . . . Parts Field Recycled . | . . . . . . . Retrieved Matter . | . . . . . . . Parts Self-Destructed . | . . . . . . . Prevented . | . . . . . . . Kills | -11 -10 -10 -10 -9 -8 -8 ------- Run | Yrd Mat Min Exi Min Mat Sto Combat Hostiles Destroyed . | . . . . . . . Classes Destroyed . | . . . . . . . Best Kill Streak . | . . . . . . . Combat Bots Only . | . . . . . . . Max Kills in Single Turn . | . . . . . . . Gunslinging . | . . . . . . . Exploded . | . . . . . . . Melee . | . . . . . . . Uniques/NPCs Destroyed . | . . . . . . . Combat | -11 -10 -10 -10 -9 -8 -8 -------- Run | Yrd Mat Min Exi Min Mat Sto Hostile Shots Fired 28 | . . 3 . . . 25 Missed 10 | . . 1 . . . 9 Damage Taken 274 | . . 25 . . . 249 Core 140 | . . 11 . . . 129 Absorbed by Shields . | . . . . . . . Core Remaining (%) 97 | 100 . . . 95 . . Volleys Fired 2 | . . . . . . 2 Largest 1 | . . . . . . 1 Hottest 65 | . . . . . . 65 Shots Fired 2 | . . . . . . 2 Gun 2 | . . . . . . 2 Cannon . | . . . . . . . Launcher . | . . . . . . . Special . | . . . . . . . Kinetic . | . . . . . . . Thermal 2 | . . . . . . 2 Explosive . | . . . . . . . Electromagnetic . | . . . . . . . Robot Hit Streak 1 | . . . . . . 1 Robot Miss Streak 1 | . . . . . . 1 Penetration Max . | . . . . . . . Secondary Targets . | . . . . . . . Shots Hit Robots 1 | . . . . . . 1 Core Hits . | . . . . . . . Critical Kills . | . . . . . . . Critical Parts Destroyed . | . . . . . . . Critical Strikes . | . . . . . . . Melee Attacks . | . . . . . . . Impact . | . . . . . . . Slashing . | . . . . . . . Piercing . | . . . . . . . Sneak Attacks . | . . . . . . . Combat Hostiles . | . . . . . . . Follow-up Attacks . | . . . . . . . Damage Inflicted 27 | . . . . . . 27 Guns 18 | . . . . . . 18 Cannons . | . . . . . . . Explosions . | . . . . . . . Melee . | . . . . . . . Ramming 9 | . . . . . . 9 Kinetic . | . . . . . . . Thermal 18 | . . . . . . 18 Explosive . | . . . . . . . Electromagnetic . | . . . . . . . Impact . | . . . . . . . Slashing . | . . . . . . . Piercing . | . . . . . . . Highest Corruption . | . . . . . . . Average Corruption . | . . . . . . . Corruption Purged . | . . . . . . . Corruption Blocked . | . . . . . . . Overload Shots . | . . . . . . . Overflow Damage . | . . . . . . . Projectiles . | . . . . . . . Explosions . | . . . . . . . Melee . | . . . . . . . Knockbacks . | . . . . . . . Impact . | . . . . . . . Kinetic . | . . . . . . . Secondary . | . . . . . . . Self-Inflicted Damage 4 | . . . . . . 4 Shots . | . . . . . . . Rammed 1 | . . . . . . 1 Targets Rammed 1 | . . . . . . 1 Kicked . | . . . . . . . Crushed . | . . . . . . . Highest Temperature 16 | . . . . . . 16 Average Temperature 10 | . . . . . . 10 Received Heat Transfer 63 | . . . . . . 63 Siege Activations . | . . . . . . . Robots Corrupted . | . . . . . . . Combat Hostiles . | . . . . . . . Parts Fried . | . . . . . . . Impact Corruptions . | . . . . . . . Robots Melted . | . . . . . . . Combat Hostiles . | . . . . . . . Parts Melted . | . . . . . . . Heat Transferred 37 | . . . . . . 37 Parts Sabotaged . | . . . . . . . Parts Stolen . | . . . . . . . Parts Stripped . | . . . . . . . Power Chain Reactions . | . . . . . . . Alert | -11 -10 -10 -10 -9 -8 -8 ------- Run | Yrd Mat Min Exi Min Mat Sto Peak Influence 191 | . 45 16 . 191 74 76 Initial 74 | . . 16 . . 74 31 Average 37 | . 38 13 . 110 70 18 Maximum Alert Level . | . . . . . . . Low Security (%) 100 | 100 100 100 . 100 100 100 Level 1 . | . . . . . . . Level 2 . | . . . . . . . Level 3 . | . . . . . . . Level 4 . | . . . . . . . Level 5 . | . . . . . . . High Security . | . . . . . . . Max Security . | . . . . . . . Squads Dispatched 3 | . 1 . . . . 2 Investigation 1 | . . . . . . 1 Extermination . | . . . . . . . Reinforcement 2 | . 1 . . . . 1 Assault . | . . . . . . . Garrison . | . . . . . . . Intercept . | . . . . . . . Searches Triggered . | . . . . . . . Construction Impeded . | . . . . . . . Haulers Reinforced . | . . . . . . . Active Scanning Responses . | . . . . . . . Cargo Convoy Interrupts . | . . . . . . . Stealth | -11 -10 -10 -10 -9 -8 -8 --------- Run | Yrd Mat Min Exi Min Mat Sto Distress Signals 2 | . . . . . . 2 Communications Jammed . | . . . . . . . Distress Signals . | . . . . . . . Times Spotted 24 | . 1 2 . . . 21 Peak Tracking Total 10 | . 1 3 . . . 10 Tactical Retreats 2 | . . 1 . . . 1 Traps | -11 -10 -10 -10 -9 -8 -8 ------- Run | Yrd Mat Min Exi Min Mat Sto Traps Triggered . | . . . . . . . Indirectly . | . . . . . . . Trap Hack Attempts . | . . . . . . . Triggered . | . . . . . . . Disarmed . | . . . . . . . Reprogrammed . | . . . . . . . Reused . | . . . . . . . Traps Extracted . | . . . . . . . Installed . | . . . . . . . Triggered . | . . . . . . . Machines | -11 -10 -10 -10 -9 -8 -8 ---------- Run | Yrd Mat Min Exi Min Mat Sto Machines Disabled . | . . . . . . . Max in Single Turn . | . . . . . . . Machines Repaired . | . . . . . . . Machines Dismantled . | . . . . . . . Machines Sabotaged . | . . . . . . . Overloaded Fab Kills . | . . . . . . . Hacking | -11 -10 -10 -10 -9 -8 -8 --------- Run | Yrd Mat Min Exi Min Mat Sto Machines Accessed 6 | . . . 2 1 1 2 Terminals 2 | . . . . 1 . 1 Fabricators . | . . . . . . . Repair Stations 1 | . . . . . 1 . Recycling Units 1 | . . . . . . 1 Scanalyzers . | . . . . . . . Garrison Access . | . . . . . . . Total Hacks 15 | . . . 5 3 1 6 Successful 8 | . . . 5 1 1 1 Failed 7 | . . . . 2 . 5 Catastrophic 2 | . . . . . . 2 Database Lockouts . | . . . . . . . Manual 4 | . . . 4 . . . Terminals 8 | . . . . 3 . 5 Fabricators . | . . . . . . . Repair Stations 1 | . . . . . 1 . Recycling Units 1 | . . . . . . 1 Scanalyzers . | . . . . . . . Garrison Access . | . . . . . . . Terminal Hacks 6 | . . . 5 1 . . Record 4 | . . . 4 . . . Zone Layout 1 | . . . . 1 . . Derelict Proto ID Bank 1 | . . . 1 . . . Fabricator Hacks . | . . . . . . . Repair Station Hacks 1 | . . . . . 1 . Refit 1 | . . . . . 1 . Recycling Unit Hacks 1 | . . . . . . 1 Process 1 | . . . . . . 1 Scanalyzer . | . . . . . . . Garrison Access Hacks . | . . . . . . . Unauthorized Hacks . | . . . . . . . Terminals . | . . . . . . . Fabricators . | . . . . . . . Repair Stations . | . . . . . . . Recycling Units . | . . . . . . . Scanalyzers . | . . . . . . . Garrison Access . | . . . . . . . Data Cores Recovered . | . . . . . . . Used . | . . . . . . . Hacking Detections 2 | . . . . 1 . 1 Full Trace Events 1 | . . . . . . 1 Feedback Events . | . . . . . . . Feedback Blocked . | . . . . . . . Robot Schematics Acquired . | . . . . . . . Robots Built . | . . . . . . . Authchips . | . . . . . . . Time . | . . . . . . . Total Robot Build Rating . | . . . . . . . Part Schematics Acquired . | . . . . . . . Parts Built . | . . . . . . . Authchips . | . . . . . . . Time . | . . . . . . . Total Part Build Rating . | . . . . . . . Parts Repaired . | . . . . . . . Time . | . . . . . . . Parts Recycled . | . . . . . . . Recycled Matter 5 | . . . . . . 5 Retrieved Matter . | . . . . . . . Retrieved Components . | . . . . . . . Parts Scanalyzed . | . . . . . . . Part Schematics Acquired . | . . . . . . . Parts Damaged . | . . . . . . . Bothacking | -11 -10 -10 -10 -9 -8 -8 ------------ Run | Yrd Mat Min Exi Min Mat Sto Used RIF Installer . | . . . . . . . Robots Hacked 3 | . . . . . . 3 Non-combat 1 | . . . . . . 1 Combat 2 | . . . . . . 2 Robot Hacks Applied 5 | . . . . . . 5 map_walls 1 | . . . . . . 1 find_shortcuts 2 | . . . . . . 2 find_garrison 2 | . . . . . . 2 Relay Couplers Released . | . . . . . . . Fabnet Peak Effective % . | . . . . . . . Robots Rewired . | . . . . . . . Allies Hacked . | . . . . . . . Hacks Repelled . | . . . . . . . Allies | -11 -10 -10 -10 -9 -8 -8 -------- Run | Yrd Mat Min Exi Min Mat Sto Total Allies 5 | . . 3 . 2 . . Largest Group 4 | . . 3 3 4 4 2 Highest-Rated Group 79 | . . 40 40 79 79 47 Highest-Rated Ally 31 | . . 16 16 31 31 31 Total Orders . | . . . . . . . Ally Attacks 30 | . . . . 18 7 5 Total Damage 399 | . . . . 224 72 103 Kills 8 | . . . . 7 1 . Allies Corrupted . | . . . . . . . Allies Melted . | . . . . . . . Intel | -11 -10 -10 -10 -9 -8 -8 ------- Run | Yrd Mat Min Exi Min Mat Sto Robot Analysis Total 5 | . 1 . . . . 4 Derelict Logs Recovered . | . . . . . . . Drone Launches . | . . . . . . . Drone Recoveries . | . . . . . . . Exploration | -11 -10 -10 -10 -9 -8 -8 ------------- Run | Yrd Mat Min Exi Min Mat Sto Turns Passed 1994 | 8 229 479 243 293 80 662 Spaces Moved 1885 | 17 293 585 266 361 100 263 Core 87 | 17 65 . . . . 5 Treads 26 | . . . . . . 26 Legs 2 | . . . . . . 2 Wheels 1770 | . 228 585 266 361 100 230 Hover . | . . . . . . . Flight . | . . . . . . . Fastest Speed 50 | 50 50 80 80 80 80 50 Average Speed 79 | 50 73 80 80 80 80 87 Slowest Speed 160 | 50 80 80 80 80 80 160 Overloaded Moves . | . . . . . . . Propulsion Burnouts . | . . . . . . . Robots Hopped . | . . . . . . . Cave-ins Triggered . | . . . . . . . Exploration Rate (%) 43 | 3 46 85 58 58 8 48 Regions Visited 6 Branch Regions 4 Pre-discovered Areas 1 | . . . 1 . . . Known Exits Taken . | . . . . . . . Unknown Exits Taken 6 | 1 1 1 1 1 1 . Scrap Searched 1 | . . 1 . . . . Spaces Dug . | . . . . . . . Terrain Destroyed . | . . . . . . . Melee . | . . . . . . . Projectile . | . . . . . . . AOE . | . . . . . . . Terrain Rammed . | . . . . . . . Walls Destroyed . | . . . . . . . Machines Disabled . | . . . . . . . Actions | -11 -10 -10 -10 -9 -8 -8 --------- Run | Yrd Mat Min Exi Min Mat Sto Total 2368 | 16 306 596 295 364 99 692 Wait 484 | . 14 10 30 4 . 426 Move 1879 | 16 292 584 265 360 99 263 Hop . | . . . . . . . Pick Up 1 | . . 1 . . . . Fast Attach . | . . . . . . . Attach . | . . . . . . . Detach . | . . . . . . . Swap . | . . . . . . . Drop 1 | . . 1 . . . . Fire 2 | . . . . . . 2 Melee . | . . . . . . . Ram 1 | . . . . . . 1 Kick . | . . . . . . . Crush . | . . . . . . . Escape Stasis . | . . . . . . . Rewire . | . . . . . . . Trap . | . . . . . . . Miscellaneous . | . . . . . . . Route ------- -11/Scrapyard -10/Materials -10/Mines (discovered 3 exits: [*Mat x2] / *Exi) -10/Exiles -9/Mines (discovered 2 exits: *Mat x2) -8/Materials -8/Storage (discovered 1 exit: [*Fac]) History --------- Turn | Location | Event 1 | -11/Scrapyard | Discovered new exit (range 1) 9 | -11/Scrapyard | Entered Materials 226 | -10/Materials | Discovered new exit (range 6) 238 | -10/Materials | Entered Mines 270 | -10/Mines | Received a Rocket Launcher from a helpful Derelict 291 | -10/Mines | Met a Derelict bent on vengeance 331 | -10/Mines | Assembled infested the area 673 | -10/Mines | Discovered new exit (range 7) 682 | -10/Mines | Assisted by bots powering up and referring to "LRC-V3" 695 | -10/Mines | Discovered new exit (range 8) 704 | -10/Mines | Deemed a non-threat by the Exiles lab entrance 704 | -10/Mines | Discovered new exit (range 5) 717 | -10/Mines | Entered Exiles 717 | -10/Exiles | Accompanied by 3 allies 743 | -10/Exiles | Met 8R-AWN 757 | -10/Exiles | Met EX-HEX 782 | -10/Exiles | Met EX-BIN 828 | -10/Exiles | Aligned with FarCom system 829 | -10/Exiles | Given EX-Vault access code 849 | -10/Exiles | Opened EX-Vault 868 | -10/Exiles | Warned to stay clear of 0b10 Research branches 895 | -10/Exiles | Learned location of Zion (-6) 922 | -10/Exiles | Discovered new exit (range 11) 960 | -10/Exiles | Entered Mines 960 | -9/Mines | Accompanied by 3 allies 1041 | -9/Mines | Discovered new exit (range 9) 1216 | -9/Mines | Discovered new exit (range 4) 1253 | -9/Mines | Entered Materials 1253 | -8/Materials | Accompanied by 4 allies 1258 | -8/Materials | Led the pair of lost Derelicts to an unsafe place 1307 | -8/Materials | Discovered new exit (range 5) 1333 | -8/Materials | Entered Storage 1333 | -8/Storage | Accompanied by 2 allies 1911 | -8/Storage | Discovered new exit (range 13) 1995 | -8/Storage | Self-destructed Last Messages --------------- Extracted analysis data for Y-45 Defender. A-02 Transporter reactivates. K-01 Serf cleans the Compression Vault. K-01 Serf collects debris. Released control of Y-45 Defender. Took control of U-05 Engineer. Extracted analysis data for U-05 Engineer. Y-45 Defender reactivates. K-01 Serf cleans the Compression Vault. EXIT=FOUND W-25 Informer sends out distress signal. ALERT: Hostiles spotted, dispatching reinforcements to Terminal S015. Connecting with Door Terminal... ALERT: Suspicious activity at Terminal S008. Dispatching Investigation squad. Released control of U-05 Engineer. Took control of G-47 Trooper. Extracted analysis data for G-47 Trooper. U-05 Engineer reactivates. Map ----- +----------------------------------------------------+ | | | | | | | | | | | | | | | ?????????????????????????????????????????????? | | ????????????????????#????????????????????????? | | ?????????????????????????????????????????????? | | ?????????????????????#???????????????????????? | | ????????????????????????#????????????????????? | | ???????????????????#?#???#??????????#????????? | | ?????????????#?????????????#?????????????????? | | ?????????#??#??????????###?#??? ????????????? | | ????????????#?##?????#??#????????????????????? | | ######????##?#??##########???????????????????? | | #######?????#?############??##T? ????????????? | | ## ###?#####??## ## ####??????????????? | | ## < ##########?## ##"###???#???????????? | | ## T?###T###?## ## T#### ? ??????????? | | ## ""?## " ??## ##+##### ?????? | | ## ##### " ??## / Y ?????? | | ## ##### ###### # ##### ?????? | | ## ######+########s#### ##### ?? ?????????? | | #T gg g g w a gl ###### ???? ?????? | | ## #####Y##+##+###### ??#????????? | | ## #####u## #ss?#????????? | | ## ###############w##g # ? ##???????? | | ## # ##### # # ##???????? | | ## # ??"?? ?#?### T + # ? ##???????? | | ## # ??""?? ??### ######+#### ### ? ???? | | ## # ?????? ###### ### # ###??????? | | ## + ? ??? ###### ### # T##??????? | | ## # ???? ? + + # ###??#???? | | ## # ? ? ? ######+### # # ?? ??? ? | | ## # ??? ? ### # """""" + # ???????? | | ## # ###??? ? # " ??" # # ????"??? | | ## ############??? # "? ??" # # "??????? | | ## # "T" ##? ??? # """""" # + ???????? | | ## # """ # ?? ? # # # ???????? | | ## # """ ##?? ?? ########## # ???????? | | ## # """ ##???#?########### ? # ???????? | | ## / ###?########???#???? ##???????? | | ## # ###?# #???#???? ##???????? | | ## # ##??# """ ##???#?????????????? | | ## # ###?# """ ##?##########??????? | | ## #######/####??# """ #??# #??????? | | ## ####### ####??# #??# #??????? | | ## # ??### ###???# #??# #??????? | +----------------------------------------------------+ Best States ------------- Heat Dissipation 40 Energy Generation 19 Energy Capacity 215 Matter Stores 100 Matter Capacity 100 Sight Range 16 Terrain Scan Range 14 Terrain Scan Density 85 Additional Mass Support 6 Armor Coverage 150 Resistance: EX 50 Resistance: I 25 Evasion (%) 50 Recoil Reduction 2 Item Schematics ----------------- None Robot Schematics ------------------ None Fabricated ------------ Nothing Alien Tech Used ----------------- None Achievements -------------- None Challenges ------------ None Polymind | -11 -10 -10 -10 -9 -8 -8 ---------- Run | Yrd Mat Min Exi Min Mat Sto Hosts 5 | . 1 . . . . 4 Combat Hostiles 2 | . . . . . . 2 Allies . | . . . . . . . Unique Host Classes 5 | . 1 . . . . 4 Average Host Suspicion 26 | . 27 5 . 17 17 55 Unsuspicious Activity 1341 | . 197 396 . 147 60 541 Returns to Shadow 1 | . . . . . . 1 Fuzzy Dispatches . | . . . . . . . Protomatter Created 107 | . . 60 . 18 14 15 Used 68 | . 5 . . . . 63 Decayed 59 | . . 35 . 9 . 15 Highest Spend 30 | . 5 . . . . 30 Game ------ Seed PointPoweredPlating Manual? 0 Play Time 00:28:31 Cumulative 68.5 hours Start 2024.09.28 @ 15:50:27 End 2024.09.28 @ 16:23:52 Sessions 1 Manual Loads 0 Difficulty Rogue Special Mode Winter2022/Polymind Game No. 68 Rogue 68 Adventurer 0 Explorer 0 Win Type - Total 2 Types 1/0/0/1/0/0/0/0/0 Lore% 50 Gallery% 41 Achievement% 41 Wizard Run 0 Options --------- Layout 1 ASCII 0 Keyboard 1 Movement Numpad Keybinds 0 Fullscreen 2 Font 20/SmallcapsGlow Map View 54x42 Zoom Use 0% Tactical HUD 0 Map Filters NONE Filters NONE Steam 1 RUN: a8599f09-a0a5-4ec3-874d-b5e573aa6f64